fUSD/lending_fUSD_20250427
["ID","MTS","AMOUNT","RATE_DAILY","PERIOD"]
[359112572,1745712642787,-400.0,0.00019698,2]
[359112574,1745712642797,-400.0,0.00019698,2]
[359112576,1745712642807,-400.0,0.00019698,2]
[359112578,1745712642817,-400.0,0.00019698,2]
[359112580,1745712642826,-400.0,0.00019698,2]
[359112582,1745712642836,-408.67,0.00019698,2]
[359112584,1745712642846,-400.0,0.00019698,2]
[359112586,1745712642856,-164.68027239,0.00019698,2]
[359112588,1745712642866,-400.0,0.00019698,2]
[359112590,1745712642875,-400.0,0.00019698,2]
[359112592,1745712642886,-400.0,0.00019698,2]
[359112594,1745712642895,-556.5,0.00019698,2]
[359112596,1745712642905,-400.0,0.00019698,2]
[359112598,1745712642915,-1351.65,0.00019698,2]
[359112600,1745712642925,-457.86,0.00019698,2]
[359112602,1745712642934,-400.0,0.00019698,2]
[359112604,1745712642944,-400.0,0.00019698,2]
[359112606,1745712642953,-400.0,0.00019698,2]
[359112608,1745712642963,-300.0,0.00019698,2]
[359112610,1745712642972,-400.0,0.00019698,2]
[359112612,1745712642982,-406.04,0.00019698,2]
[359112614,1745712642994,-400.0,0.00019698,2]
[359112616,1745712643004,-400.0,0.00019698,2]
[359112618,1745712643015,-400.0,0.00019698,2]
[359112620,1745712643025,-400.0,0.00019698,2]
[359112622,1745712643036,-400.0,0.00019698,2]
[359112624,1745712643046,-400.0,0.00019698,2]
[359112626,1745712643056,-557.93,0.00019698,2]
[359112628,1745712643066,-400.0,0.00019698,2]
[359112630,1745712643076,-400.0,0.00019698,2]
[359112632,1745712643086,-400.0,0.00019698,2]
[359112634,1745712643097,-400.0,0.00019698,2]
[359112636,1745712643107,-400.0,0.00019698,2]
[359112639,1745712643116,-150.0,0.00019698,2]
[359112642,1745712643127,-200.0,0.00019698,2]
[359112645,1745712643136,-612.0,0.00019698,2]
[359112649,1745712643147,-400.0,0.00019698,2]
[359112654,1745712643156,-400.0,0.00019698,2]
[359112656,1745712643166,-457.98,0.00019698,2]
[359112659,1745712643176,-150.0,0.00019698,2]
[359112663,1745712643186,-400.0,0.00019698,2]
[359112665,1745712643195,-400.0,0.00019698,2]
[359112667,1745712643205,-400.0,0.00019698,2]
[359112668,1745712643215,-574.95,0.00019698,2]
[359112671,1745712643225,-607.61,0.00019698,2]
[359112673,1745712643235,-400.0,0.00019698,2]
[359112675,1745712643245,-400.0,0.00019698,2]
[359112677,1745712643256,-500.0,0.00019698,2]
[359112679,1745712643266,-400.0,0.00019698,2]
[359112681,1745712643276,-400.0,0.00019698,2]
[359112683,1745712643286,-486.04004894,0.00019698,2]
[359112685,1745712643296,-400.0,0.00019698,2]
[359112686,1745712643310,-400.0,0.00019698,2]
[359112689,1745712643320,-531.03,0.00019698,2]
[359112691,1745712643330,-400.0,0.00019698,2]
[359112692,1745712643339,-400.0,0.00019698,2]
[359112695,1745712643351,-420.31,0.00019698,2]
[359112696,1745712643360,-271.36184154,0.00019698,2]
[359112699,1745712643370,-447.25,0.00019698,2]
[359112701,1745712643381,-400.0,0.00019698,2]
[359112703,1745712643391,-400.0,0.00019698,2]
[359112705,1745712643400,-400.0,0.00019698,2]
[359112707,1745712643410,-645.06,0.00019698,2]
[359112709,1745712643420,-2613.35846268,0.00019698,2]
[359112711,1745712643429,-166540.61841643,0.00019698,2]
[359112712,1745712643439,-2225.8927449,0.00019716,2]
[359112714,1745712643449,-150.0,0.00019724,2]
[359112716,1745712643459,-150.0,0.00019724,2]
[359112718,1745712643469,-150.0,0.00019725,2]
[359112720,1745712643478,-612.0,0.00019725,2]
[359112722,1745712643488,-150.0,0.0001973,2]
[359112725,1745712643503,-150.0,0.00019731,2]
[359112727,1745712643513,-2613.35846268,0.00019732,2]
[359112729,1745712643523,-150.0,0.00019737,2]
[359112731,1745712643532,-150.0,0.00019737,2]
[359112733,1745712643542,-609.04751531,0.00019739,2]
[359112735,1745712643553,-150.0,0.00019743,2]
[359112737,1745712643562,-150.0,0.00019743,2]
[359112763,1745712643802,-150.0,0.00019745,2]
[359112765,1745712643813,-150.0,0.00019745,2]
[359112767,1745712643823,-2225.8927449,0.00019747,2]
[359112769,1745712643833,-200.0,0.00019752,2]
[359112771,1745712643843,-203.73954711,0.00019752,2]
[359112773,1745712643853,-200.0,0.00019753,2]
[359112775,1745712643863,-612.0,0.00019753,2]
[359112778,1745712643873,-150.0,0.00019753,2]
[359112780,1745712643883,-150.0,0.00019756,2]
[359112782,1745712643892,-150.0,0.00019756,2]
[359112784,1745712643902,-150.0,0.00019761,2]
[359112786,1745712643912,-2613.35846268,0.00019765,2]
[359112788,1745712643922,-150.0,0.0001977,2]
[359112789,1745712643932,-150.0,0.0001977,2]
[359112792,1745712643942,-150.0,0.0001977,2]
[359112793,1745712643952,-150.0,0.0001977,2]
[359112796,1745712643962,-150.0,0.00019772,2]
[359112798,1745712643972,-2225.8927449,0.00019777,2]
[359112800,1745712643982,-150.0,0.0001978,2]
[359112802,1745712643991,-612.0,0.0001978,2]
[359112804,1745712644001,-150.0,0.00019782,2]
[359112806,1745712644012,-150.0,0.00019791,2]
[359112808,1745712644021,-150.0,0.00019795,2]
[359112810,1745712644031,-150.0,0.00019795,2]
[359112812,1745712644040,-150.0,0.00019797,2]
[359112814,1745712644050,-588.6917375,0.00019799,2]
[359112816,1745712644060,-2613.35846268,0.00019799,2]
[359112818,1745712644071,-612.0,0.00019808,2]
[359112820,1745712644081,-2225.8927449,0.00019808,2]
[359112822,1745712644091,-1094.03633529,0.0001981,2]
[359112824,1745712644100,-150.0,0.00019813,2]
[359112826,1745712644110,-150.0,0.00019815,2]
[359112828,1745712644120,-150.0,0.00019816,2]
[359112830,1745712644130,-150.0,0.00019816,2]
[359112832,1745712644140,-150.0,0.00019817,2]
[359112834,1745712644149,-150.0,0.00019817,2]
[359112836,1745712644160,-150.0,0.00019817,2]
[359112838,1745712644169,-150.0,0.00019819,2]
[359112840,1745712644179,-1287.0,0.00019819,2]
[359112842,1745712644189,-796.0,0.00019819,2]
[359112844,1745712644198,-2063.0,0.00019819,2]
[359112846,1745712644208,-548.0,0.00019819,2]
[359112848,1745712644218,-1446.0,0.00019819,2]
[359112850,1745712644228,-911.0,0.00019819,2]
[359112852,1745712644238,-579.0,0.00019819,2]
[359112854,1745712644247,-150.0,0.0001982,2]
[359112856,1745712644257,-150.0,0.00019823,2]
[359112858,1745712644267,-150.0,0.00019825,2]
[359112860,1745712644279,-150.0,0.00019827,2]
[359112862,1745712644289,-150.0,0.00019831,2]
[359112864,1745712644301,-2613.35846268,0.00019833,2]
[359112866,1745712644314,-612.0,0.00019835,2]
[359112868,1745712644323,-150.0,0.00019838,2]
[359112870,1745712644333,-2225.8927449,0.00019839,2]
[359112872,1745712644343,-150.0,0.00019845,2]
[359112874,1745712644352,-150.0,0.0001985,2]
[359112876,1745712644363,-150.0,0.0001985,2]
[359112878,1745712644373,-150.0,0.00019851,2]
[359112880,1745712644383,-151.0,0.00019856,2]
[359112882,1745712644393,-612.0,0.00019862,2]
[359112885,1745712644403,-150.0,0.00019863,2]
[359112887,1745712644413,-2613.35846268,0.00019866,2]
[359112889,1745712644423,-150.0,0.00019868,2]
[359112891,1745712644433,-150.0,0.00019869,2]
[359112893,1745712644444,-2225.8927449,0.00019869,2]
[359112895,1745712644453,-150.0,0.00019873,2]
[359112897,1745712644463,-150.0,0.00019875,2]
[359112899,1745712644472,-150.0,0.00019879,2]
[359112901,1745712644482,-150.0,0.0001988,2]
[359112903,1745712644493,-150.0,0.00019884,2]
[359112905,1745712644502,-196.859,0.00019885,2]
[359112907,1745712644511,-257.141,0.00019885,2]
[359112909,1745712644521,-3991.0,0.00019885,2]
[359112911,1745712644530,-6193.0,0.00019885,2]
[359112913,1745712644540,-877.0,0.00019885,2]
[359112915,1745712644549,-150.0,0.00019885,2]
[359112917,1745712644559,-150.0,0.00019886,2]
[359112919,1745712644569,-150.0,0.00019888,2]
[359112921,1745712644579,-612.0,0.0001989,2]
[359112923,1745712644588,-150.0,0.00019895,2]
[359112925,1745712644598,-158.68254028,0.000199,2]
[359112927,1745712644607,-466.8363278,0.000199,2]
[359112929,1745712644617,-4385.74016815,0.000199,2]
[359112931,1745712644627,-2225.8927449,0.000199,2]
[359112933,1745712644637,-2613.35846268,0.000199,2]
[359112935,1745712644646,-10749.92846637,0.000199,2]
[359112940,1745712644701,-221.5560803,0.000199,2]
[359112941,1745712644711,-150.0,0.00019901,2]
[359112942,1745712644721,-150.0,0.00019904,2]
[359112943,1745712644730,-150.0,0.00019906,2]
[359112944,1745712644740,-150.0,0.00019906,2]
[359112945,1745712644750,-150.0,0.00019911,2]
[359112946,1745712644761,-150.0,0.00019913,2]
[359112947,1745712644771,-150.0,0.00019914,2]
[359112948,1745712644781,-150.0,0.00019916,2]
[359112949,1745712644792,-612.0,0.00019917,2]
[359112950,1745712644803,-150.0,0.00019918,2]
[359112952,1745712644813,-150.0,0.00019919,2]
[359112953,1745712644824,-150.0,0.0001992,2]
[359112955,1745712644834,-150.0,0.00019923,2]
[359112957,1745712644843,-150.0,0.00019925,2]
[359112959,1745712644853,-150.0,0.00019927,2]
[359112961,1745712644864,-150.0,0.00019927,2]
[359112963,1745712644873,-150.0,0.00019941,2]
[359112965,1745712644884,-150.0,0.00019941,2]
[359112967,1745712644894,-126.00790007,0.00019944,2]
[359112971,1745712644921,-403.03628014,0.00019944,2]
[359113006,1745712645976,-4000.02631666,0.00019687,2]
[359113007,1745712645990,-2163.47481979,0.00019944,2]
[359113008,1745712646003,-176.361,0.00019944,2]
[359113011,1745712646015,-612.0,0.00019945,2]
[359113014,1745712646032,-150.0,0.00019946,2]
[359113016,1745712646044,-150.0,0.00019948,2]
[359113018,1745712646055,-150.0,0.00019949,2]
[359113020,1745712646066,-150.0,0.00019951,2]
[359113022,1745712646078,-150.0,0.00019955,2]
[359113025,1745712646091,-150.0,0.00019956,2]
[359113028,1745712646110,-920.0,0.00019956,2]
[359113030,1745712646122,-1336.0,0.00019956,2]
[359113032,1745712646135,-150.0,0.00019957,2]
[359113034,1745712646148,-150.0,0.00019959,2]
[359113037,1745712646161,-150.0,0.0001996,2]
[359113039,1745712646173,-150.0,0.00019961,2]
[359113041,1745712646186,-150.0,0.00019964,2]
[359113043,1745712646198,-150.0,0.00019964,2]
[359113046,1745712646210,-150.0,0.00019967,2]
[359113048,1745712646222,-150.0,0.00019968,2]
[359113050,1745712646235,-422.6,0.0001997,2]
[359113053,1745712646249,-400.0,0.0001997,2]
[359113055,1745712646261,-586.28,0.0001997,2]
[359113057,1745712646273,-71842.72,0.0001997,2]
[359113060,1745712646287,-448.29,0.0001997,2]
[359113062,1745712646302,-8191.9,0.0001997,2]
[359113064,1745712646315,-4090.66,0.0001997,2]
[359113066,1745712646328,-717.18,0.0001997,2]
[359113069,1745712646340,-1694.95,0.0001997,2]
[359113071,1745712646354,-438.67,0.0001997,2]
[359113073,1745712646366,-400.0,0.0001997,2]
[359113075,1745712646378,-624.06,0.0001997,2]
[359113078,1745712646391,-400.0,0.0001997,2]
[359113080,1745712646404,-469.75,0.0001997,2]
[359113082,1745712646416,-400.0,0.0001997,2]
[359113085,1745712646428,-400.0,0.0001997,2]
[359113087,1745712646440,-400.0,0.0001997,2]
[359113089,1745712646452,-400.0,0.0001997,2]
[359113091,1745712646464,-400.0,0.0001997,2]
[359113094,1745712646476,-507.91,0.0001997,2]
[359113096,1745712646489,-435.71,0.0001997,2]
[359113098,1745712646501,-400.0,0.0001997,2]
[359113100,1745712646512,-400.0,0.0001997,2]
[359113102,1745712646524,-425.16,0.0001997,2]
[359113105,1745712646538,-400.0,0.0001997,2]
[359113107,1745712646550,-647.43,0.0001997,2]
[359113109,1745712646562,-468.33,0.0001997,2]
[359113111,1745712646574,-400.0,0.0001997,2]
[359113114,1745712646586,-400.0,0.0001997,2]
[359113116,1745712646598,-400.0,0.0001997,2]
[359113118,1745712646610,-400.0,0.0001997,2]
[359113120,1745712646622,-542.26,0.0001997,2]
[359113123,1745712646634,-4805.84,0.0001997,2]
[359113125,1745712646646,-400.0,0.0001997,2]
[359113127,1745712646659,-400.0,0.0001997,2]
[359113130,1745712646671,-400.0,0.0001997,2]
[359113132,1745712646684,-404.15,0.0001997,2]
[359113134,1745712646696,-400.0,0.0001997,2]
[359113136,1745712646708,-400.0,0.0001997,2]
[359113138,1745712646721,-415.8,0.0001997,2]
[359113141,1745712646733,-507.77,0.0001997,2]
[359113143,1745712646746,-9674.461549,0.0001997,2]
[359113145,1745712646759,-400.0,0.0001997,2]
[359113147,1745712646771,-400.0,0.0001997,2]
[359113150,1745712646783,-400.0,0.00019971,2]
[359113152,1745712646796,-400.0,0.00019971,2]
[359113154,1745712646808,-488.20468367,0.00019971,2]
[359113156,1745712646820,-409.43,0.00019971,2]
[359113158,1745712646831,-500.0,0.00019971,2]
[359113161,1745712646844,-400.0,0.00019971,2]
[359113163,1745712646856,-415.11,0.00019971,2]
[359113165,1745712646868,-594.65,0.00019971,2]
[359113167,1745712646880,-400.0,0.00019971,2]
[359113169,1745712646894,-400.0,0.00019971,2]
[359113172,1745712646906,-400.0,0.00019971,2]
[359113174,1745712646918,-400.0,0.00019971,2]
[359113176,1745712646930,-400.0,0.00019971,2]
[359113178,1745712646942,-400.0,0.00019971,2]
[359113181,1745712646954,-400.0,0.00019971,2]
[359113183,1745712646967,-400.0,0.00019971,2]
[359113185,1745712646979,-454.21,0.00019971,2]
[359113187,1745712646991,-408.2,0.00019971,2]
[359113189,1745712647003,-400.0,0.00019971,2]
[359113192,1745712647016,-400.0,0.00019971,2]
[359113194,1745712647027,-1059.91,0.00019971,2]
[359113196,1745712647039,-400.0,0.00019971,2]
[359113198,1745712647051,-400.0,0.00019971,2]
[359113201,1745712647065,-555.63,0.00019971,2]
[359113203,1745712647078,-400.0,0.00019971,2]
[359113205,1745712647090,-400.0,0.00019971,2]
[359113207,1745712647102,-400.0,0.00019971,2]
[359113210,1745712647115,-400.0,0.00019971,2]
[359113212,1745712647127,-400.0,0.00019971,2]
[359113214,1745712647139,-874.3,0.00019971,2]
[359113217,1745712647151,-503.02908795,0.00019971,2]
[359113219,1745712647163,-400.0,0.00019971,2]
[359113221,1745712647175,-561.57,0.00019971,2]
[359113223,1745712647188,-400.0,0.00019971,2]
[359113226,1745712647200,-400.0,0.00019971,2]
[359113228,1745712647215,-400.0,0.00019971,2]
[359113230,1745712647227,-400.0,0.00019971,2]
[359113232,1745712647242,-400.0,0.00019971,2]
[359113235,1745712647254,-400.0,0.00019971,2]
[359113237,1745712647267,-400.0,0.00019971,2]
[359113239,1745712647279,-400.0,0.00019971,2]
[359113242,1745712647291,-150.0,0.00019971,2]
[359113244,1745712647306,-400.0,0.00019971,2]
[359113246,1745712647317,-400.0,0.00019971,2]
[359113249,1745712647331,-400.0,0.00019971,2]
[359113251,1745712647343,-400.0,0.00019971,2]
[359113253,1745712647356,-400.0,0.00019971,2]
[359113256,1745712647370,-446.67,0.00019971,2]
[359113258,1745712647383,-1178.03,0.00019971,2]
[359113261,1745712647409,-400.0,0.00019971,2]
[359113264,1745712647425,-408.5,0.00019971,2]
[359113267,1745712647440,-250.0,0.00019971,2]
[359113269,1745712647454,-400.0,0.00019971,2]
[359113272,1745712647468,-400.0,0.00019971,2]
[359113274,1745712647482,-400.0,0.00019971,2]
[359113276,1745712647497,-400.0,0.00019971,2]
[359113279,1745712647512,-413.33,0.00019971,2]
[359113281,1745712647526,-400.0,0.00019971,2]
[359113284,1745712647539,-576.93,0.00019971,2]
[359113286,1745712647553,-423.69,0.00019971,2]
[359113289,1745712647566,-400.0,0.00019971,2]
[359113291,1745712647579,-400.0,0.00019971,2]
[359113293,1745712647592,-1321.07,0.00019971,2]
[359113296,1745712647605,-400.0,0.00019971,2]
[359113298,1745712647618,-400.0,0.00019971,2]
[359113300,1745712647631,-400.0,0.00019971,2]
[359113302,1745712647644,-400.0,0.00019971,2]
[359113305,1745712647657,-400.0,0.00019971,2]
[359113307,1745712647670,-400.0,0.00019971,2]
[359113309,1745712647683,-452.53,0.00019971,2]
[359113312,1745712647696,-400.0,0.00019971,2]
[359113314,1745712647709,-491.78,0.00019971,2]
[359113316,1745712647723,-400.0,0.00019971,2]
[359113319,1745712647735,-400.0,0.00019971,2]
[359113320,1745712647749,-400.0,0.00019971,2]
[359113321,1745712647761,-207.751238,0.00019971,2]
[359113322,1745712647773,-400.0,0.00019971,2]
[359113323,1745712647786,-497.67,0.00019971,2]
[359113324,1745712647805,-400.0,0.00019971,2]
[359113325,1745712647819,-443.32,0.00019971,2]
[359113326,1745712647832,-400.0,0.00019971,2]
[359113327,1745712647846,-202.565733,0.00019971,2]
[359113328,1745712647861,-491.79059385,0.00019971,2]
[359113329,1745712647875,-468.04,0.00019971,2]
[359113331,1745712647888,-400.0,0.00019971,2]
[359113333,1745712647901,-434.36,0.00019971,2]
[359113336,1745712647915,-400.0,0.00019971,2]
[359113338,1745712647928,-763.4,0.00019971,2]
[359113340,1745712647941,-400.0,0.00019971,2]
[359113343,1745712647955,-591.62,0.00019971,2]
[359113345,1745712647968,-400.0,0.00019971,2]
[359113347,1745712647984,-400.0,0.00019971,2]
[359113349,1745712648000,-792.39,0.00019971,2]
[359113352,1745712648013,-400.0,0.00019971,2]
[359113354,1745712648029,-503.85,0.00019971,2]
[359113357,1745712648046,-400.0,0.00019971,2]
[359113359,1745712648059,-400.0,0.00019971,2]
[359113361,1745712648071,-400.0,0.00019971,2]
[359113363,1745712648083,-400.0,0.00019971,2]
[359113366,1745712648096,-458.49440549,0.00019971,2]
[359113368,1745712648109,-722.63,0.00019971,2]
[359113370,1745712648119,-400.0,0.00019971,2]
[359113372,1745712648130,-400.0,0.00019971,2]
[359113374,1745712648140,-549.66,0.00019971,2]
[359113376,1745712648151,-2673.44,0.00019971,2]
[359113378,1745712648161,-400.0,0.00019971,2]
[359113380,1745712648171,-400.0,0.00019971,2]
[359113382,1745712648182,-400.0,0.00019971,2]
[359113384,1745712648192,-400.0,0.00019971,2]
[359113386,1745712648201,-244.92208507,0.00019971,2]
[359113388,1745712648213,-400.0,0.00019971,2]
[359113390,1745712648229,-400.0,0.00019971,2]
[359113392,1745712648243,-400.0,0.00019971,2]
[359113394,1745712648253,-484.9,0.00019971,2]
[359113396,1745712648264,-400.0,0.00019971,2]
[359113398,1745712648275,-400.0,0.00019971,2]
[359113400,1745712648285,-400.0,0.00019971,2]
[359113402,1745712648298,-400.0,0.00019971,2]
[359113404,1745712648309,-400.0,0.00019971,2]
[359113406,1745712648319,-535.63,0.00019971,2]
[359113408,1745712648328,-449.84,0.00019971,2]
[359113410,1745712648339,-577.3,0.00019971,2]
[359113412,1745712648349,-400.0,0.00019971,2]
[359113414,1745712648359,-602.24,0.00019971,2]
[359113416,1745712648369,-400.0,0.00019971,2]
[359113418,1745712648379,-618.66,0.00019971,2]
[359113420,1745712648389,-400.0,0.00019971,2]
[359113422,1745712648399,-400.0,0.00019971,2]
[359113424,1745712648410,-479.92,0.00019971,2]
[359113426,1745712648419,-400.0,0.00019971,2]
[359113428,1745712648429,-400.0,0.00019971,2]
[359113430,1745712648438,-400.0,0.00019971,2]
[359113432,1745712648448,-400.0,0.00019971,2]
[359113434,1745712648458,-400.0,0.00019971,2]
[359113436,1745712648470,-400.0,0.00019971,2]
[359113490,1745712649005,-779.31,0.00019971,2]
[359113494,1745712649035,-634.7,0.00019971,2]
[359113497,1745712649057,-763.68,0.00019971,2]
[359113501,1745712649083,-550.4,0.00019971,2]
[359113503,1745712649097,-299.20446567,0.00019971,2]
[359113505,1745712649108,-400.0,0.00019971,2]
[359113507,1745712649119,-400.0,0.00019971,2]
[359113509,1745712649130,-400.0,0.00019971,2]
[359113511,1745712649141,-429.96,0.00019971,2]
[359113513,1745712649151,-400.0,0.00019971,2]
[359113515,1745712649162,-443.04,0.00019971,2]
[359113517,1745712649173,-400.0,0.00019971,2]
[359113519,1745712649184,-400.0,0.00019971,2]
[359113522,1745712649195,-678.47,0.00019971,2]
[359113524,1745712649206,-487.38,0.00019971,2]
[359113526,1745712649216,-729.43,0.00019971,2]
[359113528,1745712649227,-400.0,0.00019971,2]
[359113530,1745712649237,-400.0,0.00019971,2]
[359113532,1745712649254,-400.0,0.00019971,2]
[359113534,1745712649265,-400.0,0.00019971,2]
[359113536,1745712649275,-400.0,0.00019971,2]
[359113538,1745712649286,-400.0,0.00019971,2]
[359113540,1745712649296,-400.0,0.00019971,2]
[359113542,1745712649309,-400.0,0.00019971,2]
[359113544,1745712649321,-400.0,0.00019971,2]
[359113546,1745712649332,-400.0,0.00019971,2]
[359113548,1745712649342,-400.0,0.00019971,2]
[359113550,1745712649354,-400.0,0.00019971,2]
[359113552,1745712649365,-400.0,0.00019971,2]
[359113554,1745712649377,-488.28,0.00019971,2]
[359113556,1745712649387,-559.71,0.00019971,2]
[359113558,1745712649398,-520.37,0.00019971,2]
[359113560,1745712649409,-626.96,0.00019971,2]
[359113562,1745712649419,-624.6,0.00019971,2]
[359113564,1745712649430,-400.0,0.00019971,2]
[359113566,1745712649441,-540.00034356,0.00019971,2]
[359113568,1745712649450,-400.0,0.00019971,2]
[359113570,1745712649461,-400.0,0.00019971,2]
[359113573,1745712649472,-463.14,0.00019971,2]
[359113574,1745712649482,-400.0,0.00019971,2]
[359113577,1745712649494,-400.0,0.00019971,2]
[359113579,1745712649505,-544.35,0.00019971,2]
[359113581,1745712649514,-400.0,0.00019971,2]
[359113583,1745712649525,-400.0,0.00019971,2]
[359113585,1745712649536,-400.0,0.00019971,2]
[359113587,1745712649546,-400.0,0.00019971,2]
[359113589,1745712649556,-1625.73,0.00019971,2]
[359113591,1745712649567,-400.0,0.00019971,2]
[359113593,1745712649577,-400.0,0.00019971,2]
[359113595,1745712649587,-400.0,0.00019971,2]
[359113597,1745712649596,-400.0,0.00019971,2]
[359113599,1745712649606,-550.28,0.00019971,2]
[359113601,1745712649616,-400.0,0.00019971,2]
[359113603,1745712649627,-400.0,0.00019971,2]
[359113605,1745712649637,-173.70556644,0.00019971,2]
[359113607,1745712649647,-150.0,0.00019971,2]
[359113609,1745712649656,-400.0,0.00019971,2]
[359113611,1745712649666,-400.0,0.00019971,2]
[359113613,1745712649675,-400.0,0.00019971,2]
[359113615,1745712649685,-400.0,0.00019971,2]
[359113617,1745712649695,-400.0,0.00019971,2]
[359113619,1745712649705,-400.0,0.00019971,2]
[359113621,1745712649715,-400.0,0.00019971,2]
[359113623,1745712649726,-719.44,0.00019971,2]
[359113625,1745712649737,-3318.09,0.00019971,2]
[359113627,1745712649749,-413.27,0.00019971,2]
[359113629,1745712649759,-400.0,0.00019971,2]
[359113631,1745712649769,-400.0,0.00019971,2]
[359113633,1745712649779,-400.0,0.00019971,2]
[359113635,1745712649789,-400.0,0.00019971,2]
[359113637,1745712649799,-441.77,0.00019971,2]
[359113639,1745712649809,-400.0,0.00019971,2]
[359113641,1745712649819,-400.0,0.00019971,2]
[359113643,1745712649829,-400.0,0.00019971,2]
[359113645,1745712649838,-1994.81,0.00019971,2]
[359113647,1745712649848,-265.32691573,0.00019971,2]
[359113649,1745712649858,-675.24,0.00019971,2]
[359113651,1745712649869,-400.0,0.00019971,2]
[359113653,1745712649880,-400.0,0.00019971,2]
[359113655,1745712649891,-400.0,0.00019971,2]
[359113657,1745712649901,-455.29,0.00019971,2]
[359113659,1745712649910,-400.0,0.00019971,2]
[359113661,1745712649920,-400.0,0.00019971,2]
[359113663,1745712649930,-400.0,0.00019971,2]
[359113665,1745712649940,-400.0,0.00019971,2]
[359113668,1745712649952,-435.76,0.00019971,2]
[359113670,1745712649962,-335.28682932,0.00019971,2]
[359113672,1745712649971,-400.0,0.00019971,2]
[359113674,1745712649982,-400.0,0.00019971,2]
[359113676,1745712649993,-409.16,0.00019971,2]
[359113678,1745712650003,-338.93864538,0.00019971,2]
[359113679,1745712650012,-459.25,0.00019971,2]
[359113681,1745712650022,-400.0,0.00019971,2]
[359113684,1745712650033,-400.0,0.00019971,2]
[359113686,1745712650043,-457.13,0.00019971,2]
[359113688,1745712650053,-400.0,0.00019971,2]
[359113690,1745712650063,-417.37,0.00019971,2]
[359113692,1745712650073,-400.0,0.00019971,2]
[359113694,1745712650083,-400.0,0.00019971,2]
[359113696,1745712650092,-400.0,0.00019971,2]
[359113698,1745712650102,-81159.85,0.00019971,2]
[359113700,1745712650111,-695.61,0.00019971,2]
[359113702,1745712650121,-465.95,0.00019971,2]
[359113704,1745712650132,-400.0,0.00019971,2]
[359113706,1745712650141,-400.0,0.00019971,2]
[359113708,1745712650152,-400.0,0.00019971,2]
[359113710,1745712650161,-510.78,0.00019971,2]
[359113712,1745712650170,-400.0,0.00019971,2]
[359113714,1745712650180,-550.46,0.00019971,2]
[359113716,1745712650190,-498.48,0.00019971,2]
[359113718,1745712650199,-400.0,0.00019971,2]
[359113720,1745712650209,-588.72,0.00019971,2]
[359113722,1745712650219,-400.0,0.00019971,2]
[359113724,1745712650229,-897.72,0.00019971,2]
[359113726,1745712650239,-1209.24,0.00019971,2]
[359113728,1745712650249,-400.0,0.00019971,2]